[Event "Live Chess"]
[Site "Chess.com"]
[Date "2024.06.02"]
[Round "-"]
[White "WeakOldFinished"]
[Black "GerardATHart"]
[Result "1-0"]
[WhiteElo "2183"]
[BlackElo "1377"]
[TimeControl "300"]
[EndTime "0:11:19 PDT"]
[Termination "WeakOldFinished won on time"]

1. e4 {[%clk 0:04:56.2]} 1... e5 {[%clk 0:04:58.4]} 2. f4 {[%clk 0:04:54.4]}
2... exf4 {[%clk 0:04:56.8]} 3. Qe2 {[%clk 0:04:48.6]} 3... d6 {[%clk
0:04:50.4]} 4. Nc3 {[%clk 0:04:46.1]} 4... g5 {[%clk 0:04:48.7]} 5. d4 {[%clk
0:04:44]} 5... Bg7 {[%clk 0:04:47.1]} 6. Nf3 {[%clk 0:04:35]} 6... h6 {[%clk
0:04:44.2]} 7. g3 {[%clk 0:04:29]} 7... fxg3 {[%clk 0:04:29.8]} 8. hxg3 {[%clk
0:04:27.2]} 8... Bg4 {[%clk 0:04:25.2]} 9. Be3 {[%clk 0:04:25.8]} 9... Nc6
{[%clk 0:04:17.9]} 10. O-O-O {[%clk 0:04:24.5]} 10... Qf6 {[%clk 0:04:07.4]} 11.
Bg2 {[%clk 0:04:20.1]} 11... O-O-O {[%clk 0:04:00.8]} 12. Rhf1 {[%clk
0:04:14.3]} 12... Qg6 {[%clk 0:03:44.8]} 13. Qb5 {[%clk 0:04:04.7]} 13... Nge7
{[%clk 0:03:30]} 14. Qa4 {[%clk 0:03:44.2]} 14... f5 {[%clk 0:03:11.8]} 15. d5
{[%clk 0:03:30.8]} 15... Ne5 {[%clk 0:03:01.7]} 16. Nxe5 {[%clk 0:03:25.8]}
16... Bxe5 {[%clk 0:02:56.4]} 17. Qxa7 {[%clk 0:03:13.2]} 17... Bxg3 {[%clk
0:02:51.7]} 18. Rd4 {[%clk 0:02:50.6]} 18... Kd7 {[%clk 0:02:34.2]} 19. Rc4
{[%clk 0:02:45.6]} 19... Rb8 {[%clk 0:02:14.6]} 20. Qa4+ {[%clk 0:02:43.4]}
20... c6 {[%clk 0:01:57.5]} 21. dxc6+ {[%clk 0:02:41.7]} 21... Nxc6 {[%clk
0:01:54.5]} 22. exf5 {[%clk 0:02:33.9]} 22... Bxf5 {[%clk 0:01:49.8]} 23. Bxc6+
{[%clk 0:02:25.5]} 23... bxc6 {[%clk 0:01:48.2]} 24. Qxc6+ {[%clk 0:02:24.4]}
24... Ke7 {[%clk 0:01:39.2]} 25. Nd5+ {[%clk 0:02:22.9]} 25... Ke6 {[%clk
0:01:16]} 26. Nc7+ {[%clk 0:02:21.5]} 26... Kf6 {[%clk 0:01:14.5]} 27. Bd4+
{[%clk 0:02:20.4]} 27... Kf7 {[%clk 0:01:10.3]} 28. Qd5+ {[%clk 0:02:16.9]}
28... Ke7 {[%clk 0:01:00.6]} 29. Bxh8 {[%clk 0:02:10.6]} 29... Bf4+ {[%clk
0:00:51.1]} 30. Rcxf4 {[%clk 0:01:49.2]} 30... gxf4 {[%clk 0:00:43.3]} 31. Bc3
{[%clk 0:01:47.2]} 31... Kd7 {[%clk 0:00:31.9]} 32. Nb5 {[%clk 0:01:44.2]} 32...
Bxc2 {[%clk 0:00:26.9]} 33. Nd4 {[%clk 0:01:43]} 33... Be4 {[%clk 0:00:23.6]}
34. Qa5 {[%clk 0:01:36.2]} 34... Ra8 {[%clk 0:00:20.4]} 35. Qb5+ {[%clk
0:01:34.1]} 35... Kc7 {[%clk 0:00:16.9]} 36. Qc4+ {[%clk 0:01:29.8]} 36... Kd7
{[%clk 0:00:15.5]} 37. Nf3 {[%clk 0:01:15.8]} 37... Rxa2 {[%clk 0:00:14.5]} 38.
Qxa2 {[%clk 0:01:04.5]} 38... Qg4 {[%clk 0:00:10]} 39. Qa7+ {[%clk 0:01:02.7]}
39... Ke6 {[%clk 0:00:08.4]} 40. Qf2 {[%clk 0:01:02.1]} 40... d5 {[%clk
0:00:06.1]} 41. Nd4+ {[%clk 0:01:00.6]} 41... Kd6 {[%clk 0:00:04.2]} 42. Qxf4+
{[%clk 0:00:59.8]} 42... Qxf4+ {[%clk 0:00:02.4]} 43. Rxf4 {[%clk 0:00:59.7]}
43... h5 {[%clk 0:00:01.1]} 44. Rh4 {[%clk 0:00:57.6]} 1-0

[Event "Live Chess"]
[Site "Chess.com"]
[Date "2024.06.02"]
[Round "-"]
[White "peteopeteo"]
[Black "yarek"]
[Result "1/2-1/2"]
[WhiteElo "1553"]
[BlackElo "1717"]
[TimeControl "300"]
[EndTime "0:11:26 PDT"]
[Termination "Game drawn by repetition"]

1. e4 {[%clk 0:04:59.2]} 1... g6 {[%clk 0:04:57.1]} 2. Nf3 {[%clk 0:04:55.1]}
2... Bg7 {[%clk 0:04:56.6]} 3. Nc3 {[%clk 0:04:53.8]} 3... c6 {[%clk 0:04:56.2]}
4. Bc4 {[%clk 0:04:52.1]} 4... d6 {[%clk 0:04:47]} 5. O-O {[%clk 0:04:50.9]}
5... f6 {[%clk 0:04:45.9]} 6. d3 {[%clk 0:04:14.2]} 6... e6 {[%clk 0:04:43.7]}
7. Ne2 {[%clk 0:04:12.9]} 7... Ne7 {[%clk 0:04:43]} 8. c3 {[%clk 0:04:12.3]}
8... O-O {[%clk 0:04:41.8]} 9. b4 {[%clk 0:04:03.6]} 9... d5 {[%clk 0:04:40.6]}
10. exd5 {[%clk 0:04:02]} 10... exd5 {[%clk 0:04:39.2]} 11. Bb3 {[%clk
0:03:59.4]} 11... Bg4 {[%clk 0:04:26.4]} 12. Ng3 {[%clk 0:03:55.8]} 12... Nd7
{[%clk 0:04:21.9]} 13. h3 {[%clk 0:03:54.9]} 13... Bxf3 {[%clk 0:04:16.2]} 14.
Qxf3 {[%clk 0:03:54.8]} 14... Ne5 {[%clk 0:04:15]} 15. Qd1 {[%clk 0:03:43.4]}
15... Kh8 {[%clk 0:04:06]} 16. d4 {[%clk 0:03:28]} 16... Nd7 {[%clk 0:03:56.5]}
17. Re1 {[%clk 0:03:17.9]} 17... Re8 {[%clk 0:03:47.6]} 18. Bf4 {[%clk
0:03:14.2]} 18... Nf8 {[%clk 0:03:41.8]} 19. Qd2 {[%clk 0:02:35.6]} 19... g5
{[%clk 0:03:36.3]} 20. Be3 {[%clk 0:02:34.6]} 20... Nfg6 {[%clk 0:03:30.1]} 21.
Qc2 {[%clk 0:02:32.7]} 21... Qd7 {[%clk 0:03:12]} 22. Rad1 {[%clk 0:02:25.7]}
22... Nh4 {[%clk 0:03:00.5]} 23. a3 {[%clk 0:02:20.6]} 23... Nef5 {[%clk
0:02:57.8]} 24. Nxf5 {[%clk 0:02:12.9]} 24... Nxf5 {[%clk 0:02:54.8]} 25. Ba2
{[%clk 0:02:08.2]} 25... Nh4 {[%clk 0:02:48.3]} 26. Bb1 {[%clk 0:02:02.4]} 26...
Bf8 {[%clk 0:02:29.1]} 27. Bd2 {[%clk 0:01:52.9]} 27... Bd6 {[%clk 0:02:13.1]}
28. Rxe8+ {[%clk 0:01:41.6]} 28... Rxe8 {[%clk 0:02:10.5]} 29. Re1 {[%clk
0:01:41.5]} 29... Ng6 {[%clk 0:01:59.6]} 30. Rxe8+ {[%clk 0:01:34.6]} 30... Qxe8
{[%clk 0:01:59.5]} 31. Qf5 {[%clk 0:01:34]} 31... Kg7 {[%clk 0:01:38.7]} 32. Be3
{[%clk 0:01:08.7]} 32... Bc7 {[%clk 0:01:32.3]} 33. h4 {[%clk 0:01:02.2]} 33...
gxh4 {[%clk 0:01:14.2]} 34. Qg4 {[%clk 0:00:58.6]} 34... Qe7 {[%clk 0:00:57]}
35. Bxg6 {[%clk 0:00:53.4]} 35... hxg6 {[%clk 0:00:54.1]} 36. Qxh4 {[%clk
0:00:52.8]} 36... g5 {[%clk 0:00:44.9]} 37. Qg4 {[%clk 0:00:46.5]} 37... Qd6
{[%clk 0:00:40.9]} 38. g3 {[%clk 0:00:39.5]} 38... Kg6 {[%clk 0:00:37.1]} 39.
Qc8 {[%clk 0:00:34.4]} 39... b6 {[%clk 0:00:26.8]} 40. Qg8+ {[%clk 0:00:32.4]}
40... Kh6 {[%clk 0:00:24.8]} 41. Qh8+ {[%clk 0:00:30.5]} 41... Kg6 {[%clk
0:00:24.1]} 42. Qg8+ {[%clk 0:00:29.7]} 42... Kh6 {[%clk 0:00:23.3]} 43. Qh8+
{[%clk 0:00:29]} 43... Kg6 {[%clk 0:00:22.8]} 44. Qa8 {[%clk 0:00:23.6]} 44...
a5 {[%clk 0:00:13.5]} 45. Kg2 {[%clk 0:00:21.8]} 45... Qd7 {[%clk 0:00:10.7]}
46. Qg8+ {[%clk 0:00:20.8]} 46... Qg7 {[%clk 0:00:09.1]} 47. Qxg7+ {[%clk
0:00:18.7]} 47... Kxg7 {[%clk 0:00:09]} 48. f4 {[%clk 0:00:17.2]} 48... axb4
{[%clk 0:00:07.7]} 49. axb4 {[%clk 0:00:16]} 49... g4 {[%clk 0:00:07.1]} 50. f5
{[%clk 0:00:14]} 50... Kf7 {[%clk 0:00:05.9]} 51. Bf4 {[%clk 0:00:13.5]} 51...
Bd8 {[%clk 0:00:02.9]} 52. Kf2 {[%clk 0:00:12.6]} 52... b5 {[%clk 0:00:01.8]}
53. Ke3 {[%clk 0:00:11.7]} 53... Kg7 {[%clk 0:00:01.4]} 54. Kf2 {[%clk
0:00:11.1]} 54... Kf7 {[%clk 0:00:01.3]} 55. Kg2 {[%clk 0:00:11]} 55... Kg7
{[%clk 0:00:00.7]} 56. Kf2 {[%clk 0:00:10.9]} 56... Kf7 {[%clk 0:00:00.2]}
1/2-1/2

[Event "Live Chess"]
[Site "Chess.com"]
[Date "2024.06.02"]
[Round "-"]
[White "NAZRIZ1977"]
[Black "Bradfield133"]
[Result "1-0"]
[WhiteElo "2118"]
[BlackElo "1867"]
[TimeControl "300"]
[EndTime "0:11:27 PDT"]
[Termination "NAZRIZ1977 won by resignation"]

1. c4 {[%clk 0:04:56.4]} 1... c5 {[%clk 0:04:57.4]} 2. g3 {[%clk 0:04:55.4]}
2... g6 {[%clk 0:04:52.7]} 3. Bg2 {[%clk 0:04:54.5]} 3... Bg7 {[%clk 0:04:52]}
4. Nf3 {[%clk 0:04:53.7]} 4... Nc6 {[%clk 0:04:51.2]} 5. O-O {[%clk 0:04:53]}
5... e5 {[%clk 0:04:50.3]} 6. d3 {[%clk 0:04:51.6]} 6... Nge7 {[%clk 0:04:49.2]}
7. Nc3 {[%clk 0:04:50.4]} 7... O-O {[%clk 0:04:47.8]} 8. a3 {[%clk 0:04:49.9]}
8... a6 {[%clk 0:04:44.9]} 9. Rb1 {[%clk 0:04:49.1]} 9... Rb8 {[%clk 0:04:44]}
10. b4 {[%clk 0:04:45.7]} 10... cxb4 {[%clk 0:04:43]} 11. axb4 {[%clk
0:04:44.9]} 11... b5 {[%clk 0:04:42.4]} 12. cxb5 {[%clk 0:04:44]} 12... axb5
{[%clk 0:04:40.4]} 13. Be3 {[%clk 0:04:31]} 13... d5 {[%clk 0:04:18.7]} 14. Bc5
{[%clk 0:04:29.7]} 14... e4 {[%clk 0:04:15.7]} 15. dxe4 {[%clk 0:04:21.4]} 15...
Bxc3 {[%clk 0:04:12.9]} 16. exd5 {[%clk 0:04:20.9]} 16... Qxd5 {[%clk
0:03:53.9]} 17. Qxd5 {[%clk 0:03:56.5]} 17... Nxd5 {[%clk 0:03:51.8]} 18. Bxf8
{[%clk 0:03:56.4]} 18... Kxf8 {[%clk 0:03:49.4]} 19. Rbc1 {[%clk 0:03:32.9]}
19... Ncxb4 {[%clk 0:03:38.7]} 20. e4 {[%clk 0:03:29.8]} 20... Nd3 {[%clk
0:03:27.4]} 21. Rc2 {[%clk 0:02:55.2]} 21... N5b4 {[%clk 0:03:19.6]} 22. Rxc3
{[%clk 0:02:53.8]} 22... Be6 {[%clk 0:03:05.2]} 23. Nd4 {[%clk 0:02:44.9]} 23...
Bc4 {[%clk 0:03:02.8]} 24. Rb1 {[%clk 0:02:43.4]} 24... Na2 {[%clk 0:02:46.5]}
25. Rxc4 {[%clk 0:02:41.7]} 25... Rd8 {[%clk 0:02:36.5]} 26. Nxb5 {[%clk
0:02:38.4]} 1-0

[Event "Live Chess"]
[Site "Chess.com"]
[Date "2024.06.02"]
[Round "-"]
[White "Victor_Bondar"]
[Black "MagnersCarlsberg2870"]
[Result "0-1"]
[WhiteElo "1460"]
[BlackElo "1829"]
[TimeControl "300"]
[EndTime "0:11:41 PDT"]
[Termination "MagnersCarlsberg2870 won on time"]

1. e4 {[%clk 0:04:57]} 1... e5 {[%clk 0:04:58.7]} 2. Nf3 {[%clk 0:04:54.6]} 2...
Nf6 {[%clk 0:04:57.4]} 3. Nxe5 {[%clk 0:04:47.7]} 3... Nc6 {[%clk 0:04:54.7]} 4.
Nxc6 {[%clk 0:04:29.1]} 4... dxc6 {[%clk 0:04:51.4]} 5. Nc3 {[%clk 0:04:20.4]}
5... Bc5 {[%clk 0:04:49.3]} 6. d4 {[%clk 0:04:17.3]} 6... Bxd4 {[%clk
0:04:47.4]} 7. Be3 {[%clk 0:04:10.9]} 7... Bxe3 {[%clk 0:04:40.3]} 8. Qxd8+
{[%clk 0:04:09.5]} 8... Kxd8 {[%clk 0:04:39.3]} 9. fxe3 {[%clk 0:04:08.2]} 9...
Bg4 {[%clk 0:04:35.2]} 10. h3 {[%clk 0:04:01.1]} 10... Bh5 {[%clk 0:04:32.5]}
11. g4 {[%clk 0:03:59.9]} 11... Bg6 {[%clk 0:04:31.6]} 12. O-O-O+ {[%clk
0:03:59.1]} 12... Ke7 {[%clk 0:04:29.7]} 13. e5 {[%clk 0:03:55.2]} 13... Ne4
{[%clk 0:04:24.3]} 14. Nxe4 {[%clk 0:03:43.1]} 14... Bxe4 {[%clk 0:04:22.8]} 15.
Rg1 {[%clk 0:03:42.6]} 15... Rad8 {[%clk 0:04:17.7]} 16. Bd3 {[%clk 0:03:40.1]}
16... Bd5 {[%clk 0:04:08.5]} 17. e4 {[%clk 0:03:35.2]} 17... Be6 {[%clk
0:03:59.2]} 18. Rh1 {[%clk 0:03:13.5]} 18... h5 {[%clk 0:03:57.4]} 19. Rdf1
{[%clk 0:03:12.5]} 19... hxg4 {[%clk 0:03:54.2]} 20. hxg4 {[%clk 0:03:06.7]}
20... Rxh1 {[%clk 0:03:51.5]} 21. Rxh1 {[%clk 0:03:05.9]} 21... Bxg4 {[%clk
0:03:50.4]} 22. Rg1 {[%clk 0:02:58.4]} 22... Be6 {[%clk 0:03:40.2]} 23. Rxg7
{[%clk 0:02:56.9]} 23... Rh8 {[%clk 0:03:38.2]} 24. Rg2 {[%clk 0:02:40.6]} 24...
Rh1+ {[%clk 0:03:36.1]} 25. Kd2 {[%clk 0:02:39.3]} 25... a6 {[%clk 0:03:34.3]}
26. a3 {[%clk 0:02:36.3]} 26... c5 {[%clk 0:03:30.7]} 27. b3 {[%clk 0:02:21]}
27... b5 {[%clk 0:03:28.7]} 28. Rf2 {[%clk 0:02:06.7]} 28... c4 {[%clk
0:03:22.4]} 29. bxc4 {[%clk 0:02:05.4]} 29... bxc4 {[%clk 0:03:21.4]} 30. Be2
{[%clk 0:02:02.8]} 30... Ra1 {[%clk 0:03:20]} 31. Rf3 {[%clk 0:01:54.4]} 31...
Bg4 {[%clk 0:03:18.9]} 32. Rc3 {[%clk 0:01:50.2]} 32... Bxe2 {[%clk 0:03:12.2]}
33. Kxe2 {[%clk 0:01:47.6]} 33... Ke6 {[%clk 0:03:11]} 34. Kd2 {[%clk
0:01:43.9]} 34... Kxe5 {[%clk 0:03:09]} 35. Rxc4 {[%clk 0:01:40]} 35... Rxa3
{[%clk 0:03:06.2]} 36. Rxc7 {[%clk 0:01:39]} 36... f6 {[%clk 0:02:58.1]} 37.
Re7+ {[%clk 0:01:32.7]} 37... Kf4 {[%clk 0:02:56.2]} 38. Re6 {[%clk 0:01:27.5]}
38... a5 {[%clk 0:02:51.4]} 39. c4 {[%clk 0:01:19.4]} 39... Ra4 {[%clk
0:02:48.2]} 40. Kc3 {[%clk 0:01:18.2]} 40... Ra1 {[%clk 0:02:40.8]} 41. c5
{[%clk 0:01:00.9]} 41... Rc1+ {[%clk 0:02:36.7]} 42. Kd4 {[%clk 0:01:00.1]}
42... Rd1+ {[%clk 0:02:34.4]} 43. Kc4 {[%clk 0:00:54.8]} 43... a4 {[%clk
0:02:32.8]} 44. Kb4 {[%clk 0:00:51]} 44... Rd4+ {[%clk 0:02:31]} 45. Ka3 {[%clk
0:00:49.2]} 45... Rc4 {[%clk 0:02:18.6]} 46. c6 {[%clk 0:00:47.7]} 46... Kg5
{[%clk 0:02:05.2]} 47. c7 {[%clk 0:00:41.6]} 47... Rxc7 {[%clk 0:02:03.4]} 48.
Kxa4 {[%clk 0:00:40.9]} 48... Ra7+ {[%clk 0:02:01.2]} 49. Kb5 {[%clk 0:00:39.2]}
49... Rb7+ {[%clk 0:01:58]} 50. Kc4 {[%clk 0:00:35.4]} 50... Rd7 {[%clk
0:01:55.8]} 51. Kc5 {[%clk 0:00:29.6]} 51... Kf4 {[%clk 0:01:52.9]} 52. Rxf6+
{[%clk 0:00:26.6]} 52... Kxe4 {[%clk 0:01:51.8]} 53. Rf8 {[%clk 0:00:24.7]}
53... Ke3 {[%clk 0:01:48.1]} 54. Re8+ {[%clk 0:00:23.2]} 54... Kd2 {[%clk
0:01:44.5]} 55. Rh8 {[%clk 0:00:21.2]} 55... Kc3 {[%clk 0:01:41.6]} 56. Rh3+
{[%clk 0:00:19.2]} 56... Kd2 {[%clk 0:01:38.4]} 57. Rh2+ {[%clk 0:00:18.5]}
57... Ke3 {[%clk 0:01:37.1]} 58. Rh3+ {[%clk 0:00:17.8]} 58... Kf4 {[%clk
0:01:36.4]} 59. Rh4+ {[%clk 0:00:17.2]} 59... Kg5 {[%clk 0:01:35.7]} 60. Rh1
{[%clk 0:00:15.2]} 60... Rc7+ {[%clk 0:01:34.4]} 61. Kd6 {[%clk 0:00:14.2]}
61... Rc2 {[%clk 0:01:32.4]} 62. Rg1+ {[%clk 0:00:13.4]} 62... Kf4 {[%clk
0:01:31.3]} 63. Rf1+ {[%clk 0:00:12.7]} 63... Kg3 {[%clk 0:01:30.6]} 64. Rg1+
{[%clk 0:00:11.6]} 64... Kh2 {[%clk 0:01:29.8]} 65. Rg8 {[%clk 0:00:10.5]} 65...
Rd2+ {[%clk 0:01:28.4]} 66. Ke5 {[%clk 0:00:09.5]} 66... Re2+ {[%clk 0:01:27.4]}
67. Kf4 {[%clk 0:00:08.4]} 67... Rf2+ {[%clk 0:01:26.5]} 68. Ke3 {[%clk
0:00:07.5]} 68... Ra2 {[%clk 0:01:24.7]} 69. Rh8+ {[%clk 0:00:05.8]} 69... Kg3
{[%clk 0:01:21.9]} 70. Rg8+ {[%clk 0:00:04.7]} 70... Kh4 {[%clk 0:01:20.9]} 71.
Kf4 {[%clk 0:00:03.5]} 71... Ra4+ {[%clk 0:01:19.3]} 72. Kf3 {[%clk 0:00:02.6]}
72... Kh5 {[%clk 0:01:17.4]} 73. Rh8+ {[%clk 0:00:01.5]} 73... Kg6 {[%clk
0:01:16.3]} 74. Rg8+ {[%clk 0:00:00.7]} 74... Kf7 {[%clk 0:01:15.4]} 0-1

[Event "Live Chess"]
[Site "Chess.com"]
[Date "2024.06.02"]
[Round "-"]
[White "juniortay"]
[Black "Duke_of_Bebington"]
[Result "0-1"]
[WhiteElo "2391"]
[BlackElo "1697"]
[TimeControl "300"]
[EndTime "0:11:54 PDT"]
[Termination "Duke_of_Bebington won by resignation"]

1. e4 {[%clk 0:04:55.4]} 1... e5 {[%clk 0:04:58.7]} 2. Nc3 {[%clk 0:04:48.8]}
2... Nf6 {[%clk 0:04:55.3]} 3. f4 {[%clk 0:04:41.7]} 3... d6 {[%clk 0:04:53.8]}
4. Nf3 {[%clk 0:04:38.3]} 4... Nc6 {[%clk 0:04:50]} 5. Bb5 {[%clk 0:04:36.8]}
5... Bd7 {[%clk 0:04:48.7]} 6. O-O {[%clk 0:04:35.6]} 6... a6 {[%clk 0:04:47.5]}
7. Bxc6 {[%clk 0:04:34.2]} 7... Bxc6 {[%clk 0:04:46.5]} 8. fxe5 {[%clk
0:04:33.3]} 8... dxe5 {[%clk 0:04:40.5]} 9. d3 {[%clk 0:04:32.3]} 9... Bc5+
{[%clk 0:04:33.4]} 10. Kh1 {[%clk 0:04:27]} 10... Bd4 {[%clk 0:04:28.9]} 11. Qe1
{[%clk 0:04:24.7]} 11... O-O {[%clk 0:04:27.8]} 12. Qh4 {[%clk 0:04:21.6]} 12...
h6 {[%clk 0:04:14.4]} 13. Nxd4 {[%clk 0:03:52.6]} 13... Qxd4 {[%clk 0:04:06.3]}
14. Bxh6 {[%clk 0:03:50.6]} 14... Nh7 {[%clk 0:03:54.2]} 15. Bd2 {[%clk
0:03:43.1]} 15... Qd6 {[%clk 0:03:45.7]} 16. Rf3 {[%clk 0:03:40.1]} 16... f5
{[%clk 0:03:26.4]} 17. Rh3 {[%clk 0:03:32.8]} 17... Nf6 {[%clk 0:03:20.2]} 18.
exf5 {[%clk 0:03:22.8]} 18... Kf7 {[%clk 0:03:14.5]} 19. Rf1 {[%clk 0:03:14.6]}
19... Be8 {[%clk 0:03:00.7]} 20. Bg5 {[%clk 0:03:10.8]} 20... Ke7 {[%clk
0:02:59]} 21. Re3 {[%clk 0:03:02.7]} 21... Kd7 {[%clk 0:02:55.3]} 22. Bxf6
{[%clk 0:03:00.2]} 22... gxf6 {[%clk 0:02:53.7]} 23. Ne4 {[%clk 0:02:56.1]}
23... Qe7 {[%clk 0:02:51.6]} 24. Rd1 {[%clk 0:02:42.6]} 24... b6 {[%clk
0:02:45.9]} 25. d4 {[%clk 0:02:33.7]} 25... Kc8 {[%clk 0:02:41.7]} 26. d5 {[%clk
0:02:32.7]} 26... Qg7 {[%clk 0:02:35.9]} 27. Rg3 {[%clk 0:02:23.3]} 27... Qh8
{[%clk 0:02:31.8]} 28. Qg4 {[%clk 0:02:20.2]} 28... Bh5 {[%clk 0:02:28]} 29. d6
{[%clk 0:02:11.2]} 29... Bxg4 {[%clk 0:02:23.6]} 30. Rxg4 {[%clk 0:02:10]} 30...
Rd8 {[%clk 0:02:15.7]} 31. Rg6 {[%clk 0:01:56.9]} 31... cxd6 {[%clk 0:02:12.3]}
32. Rxf6 {[%clk 0:01:54.5]} 32... d5 {[%clk 0:02:10.6]} 33. Nd6+ {[%clk
0:01:39.2]} 33... Kc7 {[%clk 0:01:51.4]} 0-1

[Event "Live Chess"]
[Site "Chess.com"]
[Date "2024.06.02"]
[Round "-"]
[White "wadsy27"]
[Black "Tatarinov_Maxim"]
[Result "1-0"]
[WhiteElo "2586"]
[BlackElo "2258"]
[TimeControl "300"]
[EndTime "0:12:01 PDT"]
[Termination "wadsy27 won by resignation"]

1. c4 {[%clk 0:04:58.9]} 1... Nf6 {[%clk 0:04:57.2]} 2. g3 {[%clk 0:04:58.2]}
2... g6 {[%clk 0:04:55.2]} 3. Bg2 {[%clk 0:04:57.6]} 3... Bg7 {[%clk 0:04:54.6]}
4. Nc3 {[%clk 0:04:57.1]} 4... O-O {[%clk 0:04:53.8]} 5. Nf3 {[%clk 0:04:55.3]}
5... c5 {[%clk 0:04:53.3]} 6. d4 {[%clk 0:04:53.1]} 6... cxd4 {[%clk 0:04:52.4]}
7. Nxd4 {[%clk 0:04:52.3]} 7... Nc6 {[%clk 0:04:52.3]} 8. O-O {[%clk 0:04:51.6]}
8... d6 {[%clk 0:04:50.6]} 9. Nxc6 {[%clk 0:04:50.7]} 9... bxc6 {[%clk
0:04:50.5]} 10. Bxc6 {[%clk 0:04:50.1]} 10... Rb8 {[%clk 0:04:50.1]} 11. Bg2
{[%clk 0:04:49.6]} 11... Qa5 {[%clk 0:04:49.2]} 12. Qd2 {[%clk 0:04:46.2]} 12...
Be6 {[%clk 0:04:47.2]} 13. b3 {[%clk 0:04:45.5]} 13... Rxb3 {[%clk 0:04:46]} 14.
axb3 {[%clk 0:04:45.4]} 14... Qxa1 {[%clk 0:04:44.7]} 15. Nb5 {[%clk 0:04:45.3]}
15... Qa6 {[%clk 0:04:24.6]} 16. Bb2 {[%clk 0:04:34.6]} 16... Rc8 {[%clk
0:03:35.2]} 17. Ra1 {[%clk 0:04:29.8]} 17... Qb6 {[%clk 0:03:34.6]} 18. Bd4
{[%clk 0:04:26.3]} 18... Qd8 {[%clk 0:03:26.8]} 19. Nxa7 {[%clk 0:04:20]} 19...
Rc7 {[%clk 0:03:19.5]} 20. Bb6 {[%clk 0:03:52.2]} 20... Nd7 {[%clk 0:03:17.9]}
21. Bxc7 {[%clk 0:03:50.7]} 21... Qxc7 {[%clk 0:03:17.8]} 22. Nb5 {[%clk
0:03:50.2]} 22... Qb6 {[%clk 0:03:13.4]} 23. Ra8+ {[%clk 0:03:48.3]} 23... Nf8
{[%clk 0:03:12.3]} 24. h4 {[%clk 0:03:42.7]} 24... h5 {[%clk 0:03:08]} 25. e3
{[%clk 0:03:39.5]} 25... Qc5 {[%clk 0:03:04.8]} 26. Bd5 {[%clk 0:03:36.7]} 26...
Bd7 {[%clk 0:03:00.1]} 27. b4 {[%clk 0:03:15.3]} 27... Qb6 {[%clk 0:02:56]} 28.
Qd3 {[%clk 0:03:06.5]} 28... e6 {[%clk 0:02:50.2]} 29. Bg2 {[%clk 0:02:55.6]}
29... d5 {[%clk 0:02:48.9]} 30. Nd4 {[%clk 0:02:52]} 30... Qxb4 {[%clk
0:02:39.1]} 31. cxd5 {[%clk 0:02:51.2]} 31... exd5 {[%clk 0:02:25.3]} 32. Bxd5
{[%clk 0:02:50]} 32... Qe1+ {[%clk 0:02:18.8]} 33. Qf1 {[%clk 0:02:35.7]} 33...
Qd2 {[%clk 0:02:17.8]} 34. Qc4 {[%clk 0:02:18.4]} 34... Qe1+ {[%clk 0:02:16.1]}
35. Kg2 {[%clk 0:02:14.3]} 35... Bh3+ {[%clk 0:02:11.3]} 36. Kxh3 {[%clk
0:02:13]} 36... Qxf2 {[%clk 0:02:07]} 37. Ra2 {[%clk 0:02:05.1]} 1-0

[Event "Live Chess"]
[Site "Chess.com"]
[Date "2024.06.02"]
[Round "-"]
[White "Kyrylo7770"]
[Black "Ferrarifan27"]
[Result "0-1"]
[WhiteElo "1625"]
[BlackElo "2119"]
[TimeControl "300"]
[EndTime "0:12:29 PDT"]
[Termination "Ferrarifan27 won by resignation"]

1. d4 {[%clk 0:04:59.5]} 1... Nf6 {[%clk 0:04:57.4]} 2. Nf3 {[%clk 0:04:59.2]}
2... d5 {[%clk 0:04:54.7]} 3. Bg5 {[%clk 0:04:58.5]} 3... Bf5 {[%clk 0:04:50.7]}
4. e3 {[%clk 0:04:57.9]} 4... e6 {[%clk 0:04:48.9]} 5. c3 {[%clk 0:04:56.5]}
5... Be7 {[%clk 0:04:46.9]} 6. h4 {[%clk 0:04:55.2]} 6... O-O {[%clk 0:04:45]}
7. Bd3 {[%clk 0:04:54]} 7... Ne4 {[%clk 0:04:43.1]} 8. Bxe7 {[%clk 0:04:52.6]}
8... Qxe7 {[%clk 0:04:42]} 9. Ne5 {[%clk 0:04:49.8]} 9... Nd7 {[%clk 0:04:39.5]}
10. Bxe4 {[%clk 0:04:37]} 10... Bxe4 {[%clk 0:04:37.7]} 11. f3 {[%clk
0:04:34.8]} 11... Bf5 {[%clk 0:04:20.3]} 12. g4 {[%clk 0:04:33.7]} 12... Nxe5
{[%clk 0:04:19]} 13. dxe5 {[%clk 0:04:32.6]} 13... Bxb1 {[%clk 0:04:12.6]} 14.
Qxb1 {[%clk 0:04:31.7]} 14... f6 {[%clk 0:04:10.1]} 15. f4 {[%clk 0:04:28.1]}
15... fxe5 {[%clk 0:04:07.9]} 16. fxe5 {[%clk 0:04:27]} 16... Qf7 {[%clk
0:04:06.6]} 17. Qc2 {[%clk 0:04:24]} 17... Qf3 {[%clk 0:04:04.9]} 18. Rg1 {[%clk
0:04:18.2]} 18... Qxe3+ {[%clk 0:04:03.3]} 19. Qe2 {[%clk 0:04:16.9]} 19...
Qxg1+ {[%clk 0:04:01.9]} 20. Kd2 {[%clk 0:04:15.7]} 20... Qxa1 {[%clk
0:04:00.9]} 0-1